bitfinex-derivatives/quotes_ETHF0:USTF0_20250807
["timestamp","ask_amount","ask_price","bid_price","bid_amount"]
[1754579166281,18.288,3820.9,3819.8,1.30866]
[1754579166282,0.52336,3820.6,3819.8,0.4205]
[1754579166486,0.52336,3820.6,3819.9,1.30863]
[1754579166789,0.301,3820.5,3820.4,1.24518]
[1754579166990,1.0376,3820.5,3820.4,1.24518]
[1754579167192,1.0376,3820.5,3820.3,0.52339]
[1754579167384,0.7366,3820.5,3820.4,0.52337]
[1754579167585,1.0376,3820.5,3820.3,0.52339]
[1754579167891,1.0376,3820.4,3820.3,0.94389]
[1754579168089,1.0376,3820.4,3820.3,0.52339]
[1754579169089,1.0376,3820.4,3819.9,0.7218]
[1754579169090,0.52339,3820.4,3819.9,0.7218]
[1754579169292,1.0376,3820.1,3820.0,0.52344]
[1754579169590,18.289,3820.6,3819.6,0.3013]
[1754579169786,0.52338,3820.5,3819.8,1.72917]
[1754579169987,0.6753,3820.4,3820.3,0.52339]
[1754579170491,1.4119,3820.4,3820.3,1.3954]
[1754579170692,1.271,3820.4,3820.3,1.678]
[1754579170888,0.9899,3820.4,3820.3,1.678]
[1754579171291,18.289,3820.6,3820.4,0.52338]
[1754579171586,20.08335,3820.6,3820.5,0.1924]
[1754579171785,1.7129,3819.8,3819.7,0.80518]
[1754579171981,0.6753,3819.6,3819.5,0.4205]
[1754579172182,0.4924,3819.5,3819.4,0.91541]
[1754579172382,19.4062,3820.0,3819.9,1.19705]
[1754579172584,0.4861,3820.5,3820.4,1.19698]
[1754579172792,0.6889,3820.5,3820.4,1.91878]
[1754579172986,0.6869,3820.5,3820.4,2.20228]
[1754579173180,18.288,3820.7,3820.6,1.24565]
[1754579173383,18.288,3820.7,3820.6,1.52915]
[1754579173579,0.2927,3820.9,3820.8,0.52333]
[1754579173895,0.81593,3821.5,3821.4,0.2931]
[1754579174085,0.2927,3821.5,3821.4,0.7223]
[1754579174280,0.5813,3821.5,3821.4,0.7223]
[1754579174485,0.5813,3821.2,3820.6,0.5766]
[1754579174680,1.0286,3821.1,3821.0,0.52329]
[1754579174889,18.289,3821.2,3820.5,1.30841]
[1754579175089,0.2886,3820.9,3820.8,0.52333]
[1754579175386,0.2886,3820.9,3820.8,1.24563]
[1754579175792,0.5813,3820.9,3820.8,1.24563]
[1754579175994,0.5813,3820.9,3820.8,0.4292]
[1754579176193,0.52333,3820.8,3820.5,0.52336]
[1754579176393,0.52331,3821.0,3820.7,0.52333]
[1754579176688,0.52329,3821.1,3820.8,0.95252]
[1754579176892,1.0286,3821.0,3820.8,0.95252]
[1754579177083,1.0286,3820.9,3820.8,0.95252]
[1754579177289,1.0286,3820.9,3820.8,0.4292]
[1754579178095,0.52333,3820.8,3820.4,0.7223]
[1754579178396,1.0286,3820.8,3820.7,0.52334]
[1754579178697,1.0286,3820.8,3820.7,0.95254]
[1754579178995,0.52335,3820.7,3820.4,0.52337]
[1754579179184,0.4473,3820.5,3820.3,0.52339]
[1754579179390,0.74,3820.5,3820.1,0.4292]
[1754579179590,0.4473,3820.2,3819.4,1.0058]
[1754579179893,0.4473,3820.2,3819.9,0.52344]
[1754579179894,0.52342,3820.2,3819.9,0.52344]
[1754579180090,1.0286,3820.0,3819.8,0.95265]
[1754579180284,18.287,3820.6,3819.8,0.95265]
[1754579180285,0.5813,3819.9,3819.8,1.24575]
[1754579180490,0.5813,3819.9,3819.8,1.52925]
[1754579181496,0.2927,3819.9,3819.8,1.52925]
[1754579181696,0.5813,3819.9,3819.8,1.52925]
[1754579182291,0.7359,3820.3,3820.2,0.7223]
[1754579182491,1.0286,3820.3,3820.2,0.7223]
[1754579182692,1.0286,3820.3,3820.2,0.4292]
[1754579182990,18.286,3820.9,3820.5,0.52336]
[1754579183197,1.2485874,3820.8,3820.6,0.4292]
[1754579183394,0.2927,3820.7,3820.6,1.0058]
[1754579184293,0.7252474,3821.1,3820.5,0.52336]
[1754579184499,1.0286,3820.4,3820.3,0.4292]
[1754579184996,1.0286,3820.4,3820.3,0.9526]
[1754579185494,1.0286,3820.4,3820.3,1.2457]
[1754579185696,0.2927,3820.4,3820.3,1.5292]
[1754579186794,1.0286,3820.4,3820.3,0.9526]
[1754579187095,1.0286,3820.3,3820.1,0.52341]
[1754579187292,1.6898,3820.2,3820.1,0.52341]
[1754579187492,1.6898,3820.2,3820.1,1.90541]
[1754579189099,0.3718,3820.6,3820.5,0.9528]
[1754579189296,0.6645,3820.6,3820.5,1.90537]
[1754579189500,1.6898,3820.6,3820.5,0.9053]
[1754579189700,1.6898,3820.6,3820.5,0.2926]
[1754579189890,0.52335,3820.7,3820.2,0.7218]
[1754579190095,1.6898,3820.4,3820.3,0.5234]
[1754579190392,1.6898,3820.4,3820.3,1.9054]
[1754579190996,1.6898,3820.4,3820.3,1.4287]
[1754579191189,1.6898,3820.4,3820.3,1.9054]
[1754579191190,1.2138,3820.4,3820.3,1.9054]
[1754579191388,1.6898,3820.4,3820.3,0.1835]
[1754579191689,1.0551,3820.1,3819.9,0.95264]
[1754579191891,1.30833,3820.8,3819.9,0.95264]
[1754579191892,1.6898,3820.0,3819.9,0.52344]
[1754579192095,1.6898,3820.0,3819.7,0.2931]
[1754579192288,0.6612,3819.8,3819.7,0.7218]
[1754579192500,1.6898,3819.8,3819.7,0.7218]
[1754579192700,1.6898,3819.8,3819.7,0.9053]
[1754579193801,1.6898,3819.8,3819.7,0.2926]
[1754579194396,1.6898,3819.8,3819.7,0.9053]
[1754579194596,1.2425,3820.2,3820.1,0.2926]
[1754579194796,1.6898,3820.2,3820.1,1.382]
[1754579194991,0.6645,3820.2,3820.1,1.6655]
[1754579195399,0.4771,3820.2,3820.1,1.6655]
[1754579195792,1.6898,3820.2,3820.1,0.2926]
[1754579195997,1.6898,3820.2,3820.0,0.52343]
[1754579195998,1.6898,3819.8,3819.7,1.42878]
[1754579196304,1.2425,3819.8,3819.7,2.18898]
[1754579196602,0.9531,3819.8,3819.7,2.18898]
[1754579197105,1.3971,3820.2,3820.1,0.81602]
[1754579197403,1.3971,3820.2,3820.1,1.90542]
[1754579197704,1.6898,3820.2,3820.1,1.61232]
[1754579198203,1.6898,3820.2,3820.1,0.9053]
[1754579198392,1.6898,3820.2,3820.1,0.4761]
[1754579198599,1.6898,3820.1,3820.0,0.52343]
[1754579199101,1.6898,3820.1,3820.0,1.42873]
[1754579199301,1.6898,3820.1,3820.0,0.70694]
[1754579199496,1.6898,3820.1,3820.0,1.61234]
[1754579199702,0.9531,3820.1,3820.0,1.90544]
[1754579200607,1.6898,3820.5,3820.4,1.90538]
[1754579200799,1.1725474,3820.8,3820.7,0.52334]
[1754579201000,0.9096474,3820.8,3820.7,2.18884]
[1754579201201,1.6783474,3821.4,3821.3,1.90526]
[1754579201395,1.1118,3821.4,3821.3,1.90526]
[1754579201600,0.4771,3821.4,3821.3,1.90526]
[1754579201905,1.6898,3821.4,3821.3,1.90526]
[1754579202706,1.2425,3821.4,3821.3,2.18876]
[1754579202905,0.7252474,3821.6,3821.5,1.88693]
[1754579203104,0.7252474,3821.6,3821.5,2.18753]
[1754579203406,2.1494348,3822.0,3821.9,2.18748]
[1754579203602,0.4729,3822.0,3821.9,2.18748]
[1754579203996,0.7742,3822.0,3821.9,2.18748]
[1754579204204,1.6855474,3822.0,3821.9,2.18748]
[1754579204400,1.2575,3822.0,3821.9,1.88688]
[1754579204708,1.6751,3822.0,3821.9,1.3637]
[1754579204907,2.1494348,3822.2,3822.1,0.2973]
[1754579205105,3.0607822,3822.2,3822.1,1.3637]
[1754579205403,2.1004822,3822.3,3822.2,0.70773]
[1754579205703,2.1004822,3822.3,3821.7,1.30799]
[1754579205704,2.1004822,3822.5,3822.4,1.17691]
[1754579205901,1.3752348,3822.7,3822.6,1.17688]
[1754579206097,0.7252474,3822.8,3822.6,0.52308]
[1754579206298,1.0,3823.0,3822.8,0.82365]
[1754579206299,1.7252474,3823.0,3822.8,0.82365]
[1754579206498,1.0,3823.0,3822.9,0.7099]
[1754579206709,1.0,3823.0,3822.9,1.0105]
[1754579207505,1.2738,3823.0,3822.9,1.0105]
[1754579207900,1.0,3823.0,3822.9,1.0105]
[1754579209208,1.2738,3823.0,3822.9,1.0105]
[1754579209507,1.0,3823.0,3822.9,1.53354]
[1754579209803,1.0,3823.0,3822.9,1.6643]
[1754579210206,1.7742,3823.0,3822.9,1.6643]
[1754579210609,1.4729,3823.0,3822.9,1.6643]
[1754579210911,3.19813,3823.0,3822.9,1.0664]
[1754579211408,0.1991,3822.5,3822.4,1.0664]
[1754579211604,0.9603,3822.5,3822.4,1.3637]
[1754579211803,0.52311,3822.4,3822.0,0.52316]
[1754579212000,0.9927,3822.2,3822.1,0.4126]
[1754579212201,0.5751,3822.2,3822.1,1.0105]
[1754579213008,0.9927,3822.5,3822.2,0.52314]
[1754579213214,0.9927,3822.5,3822.4,0.7099]
[1754579214902,0.52309,3822.6,3822.4,0.7099]
[1754579214903,0.9927,3822.9,3822.4,0.4692]
[1754579215101,1.0,3823.0,3822.9,1.3802]
[1754579215301,1.0,3823.0,3822.9,1.0105]
[1754579215507,1.0,3823.0,3822.9,1.53354]
[1754579216109,1.5751,3823.0,3822.9,1.0105]
[1754579216308,1.9927,3823.0,3822.9,0.7099]
[1754579216508,2.51574,3823.0,3822.6,0.52308]
[1754579216709,0.9927,3822.8,3822.5,0.4126]
[1754579217008,0.9927,3822.7,3822.6,0.52307]
[1754579217213,0.2738,3822.2,3822.0,0.52316]
[1754579217403,0.52312,3822.4,3822.0,0.4126]
[1754579217608,0.9927,3822.1,3822.0,0.93575]
[1754579217808,0.5751,3822.1,3822.0,1.53365]
[1754579218014,0.2738,3822.1,3822.0,1.53365]
[1754579218208,0.3013,3822.4,3822.0,1.53365]
[1754579218209,0.5751,3822.4,3822.2,0.52313]
[1754579218415,0.2738,3822.3,3822.2,0.3006]
[1754579218614,0.5751,3822.3,3822.2,0.3006]
[1754579219119,0.9927,3822.9,3822.7,0.52306]
[1754579219412,0.9927,3822.9,3822.8,1.0105]
[1754579219413,0.2738,3822.9,3822.8,1.0105]
[1754579219609,0.9927,3822.9,3822.8,0.7099]
[1754579219810,0.9927,3822.9,3822.8,0.4126]
[1754579220010,0.9927,3822.9,3822.8,0.7099]
[1754579220213,0.9927,3822.9,3822.8,0.4126]
[1754579220515,0.9927,3822.9,3822.8,0.7099]
[1754579221216,0.5751,3822.9,3822.8,0.7099]
[1754579221410,0.9927,3822.9,3822.8,0.7099]
[1754579221603,0.4176,3822.7,3822.6,0.52308]
[1754579221803,1.0,3823.0,3822.8,0.52304]
[1754579222014,1.3013,3823.0,3822.9,0.7099]
[1754579222211,1.0,3823.0,3822.9,1.0105]
[1754579224318,0.52291,3823.9,3821.3,27.47126]
[1754579224319,0.2738,3823.8,3822.1,2.61571]
[1754579224515,0.5751,3823.6,3823.4,0.52297]
[1754579224820,0.6824,3823.6,3823.5,0.52295]
[1754579225216,1.6751,3823.6,3823.5,0.52295]
[1754579225416,1.6751,3823.6,3823.5,1.27805]
[1754579225719,1.6751,3823.6,3823.5,0.89265]
[1754579225920,1.6751,3823.6,3823.5,0.70805]
[1754579226418,1.6751,3823.6,3823.5,0.98075]
[1754579226618,1.6751,3823.6,3823.5,0.89265]
[1754579227015,1.6751,3823.6,3823.5,1.41975]
[1754579227615,0.6824,3823.8,3823.7,0.52292]
[1754579227815,0.6824,3824.0,3823.9,0.3697]
[1754579228316,0.5229,3823.9,3823.7,0.52292]
[1754579228521,1.6751,3823.8,3823.7,0.89262]
[1754579228723,1.6751,3823.8,3823.5,0.2973]
[1754579228917,2.0270567,3824.5,3820.8,3.27410291]
[1754579228918,0.9562,3823.5,3823.4,0.70807]
[1754579229112,1.6751,3823.8,3823.7,0.89263]
[1754579229318,1.6751,3823.8,3823.7,1.27803]
[1754579229619,0.52284,3824.4,3824.1,0.89257]
[1754579229817,1.4013,3824.3,3824.2,0.1851]
[1754579230018,1.4013,3824.2,3824.1,0.52287]
[1754579230218,1.6751,3824.2,3824.1,0.98067]
[1754579230520,1.6751,3824.2,3823.9,0.52289]
[1754579230822,1.6751,3824.0,3823.9,0.52289]
[1754579231016,0.6824,3823.8,3823.7,0.52292]
[1754579231217,1.6751,3823.8,3823.7,0.70802]
[1754579231421,1.6751,3823.8,3823.7,1.27802]
[1754579231923,0.9562,3823.8,3823.7,1.72032]
[1754579232320,1.4013,3824.1,3824.0,0.89259]
[1754579232521,1.6751,3824.1,3824.0,1.27799]
[1754579233320,1.6751,3824.1,3824.0,0.52289]
[1754579233520,1.6751,3824.1,3824.0,1.43129]
[1754579233824,1.4054,3824.1,3824.0,1.05379]
[1754579234020,0.9632,3824.1,3824.0,1.71739]
[1754579234519,0.7199767,3824.5,3824.3,0.52285]
[1754579234722,1.4511767,3824.5,3824.4,0.3775]
[1754579234924,1.9152767,3824.5,3824.4,0.9084]
[1754579235128,2.4209767,3824.5,3824.4,0.9084]
[1754579235519,1.6757767,3824.5,3824.4,1.1945]
[1754579235819,0.9063,3824.8,3824.7,1.34169]
[1754579236024,0.9063,3824.8,3824.7,1.62779]
[1754579236526,1.701,3824.8,3824.7,1.71729]
[1754579236721,1.30687,3825.1,3824.2,0.52285]
[1754579237026,0.2027,3823.7,3823.6,0.70963]
[1754579237225,1.701,3823.7,3823.6,0.70963]
[1754579237422,1.701,3823.7,3823.6,1.43133]
[1754579237622,1.701,3823.7,3823.6,1.71743]
[1754579238130,1.2588,3823.7,3823.6,1.71743]
[1754579238423,1.701,3824.0,3823.9,1.2882]
[1754579238823,1.2428167,3824.4,3824.2,0.1867]
[1754579238824,0.289,3824.3,3824.2,0.1867]
[1754579239024,1.701,3824.3,3824.2,0.3878]
[1754579239226,1.701,3824.3,3824.2,0.1867]
[1754579239426,1.701,3824.3,3824.1,0.52287]
[1754579239626,1.701,3824.2,3824.1,0.52287]
[1754579240219,0.9558,3824.0,3823.9,0.52289]
[1754579240424,1.701,3824.0,3823.9,0.52289]
[1754579241027,1.4651767,3824.7,3823.9,1.59335]
[1754579241221,1.701,3824.7,3824.6,1.0001]
[1754579241427,1.701,3824.7,3824.6,1.4312]
[1754579241826,1.701,3824.7,3823.1,2.61507]
[1754579241827,0.3922,3824.1,3824.0,0.91068]
[1754579242028,1.701,3824.1,3824.0,0.91068]
[1754579242330,1.701,3824.1,3824.0,1.43128]
[1754579242527,1.701,3824.1,3824.0,0.91068]
[1754579242725,1.0342,3824.0,3823.9,0.5229]
[1754579242920,1.701,3824.0,3823.9,0.5229]
[1754579243121,0.6668,3824.0,3823.8,0.52291]
[1754579243327,1.701,3823.9,3823.8,0.52291]
[1754579243825,1.412,3824.4,3824.2,0.52285]
[1754579244022,0.9558,3824.3,3824.1,0.52287]
[1754579244223,0.6668,3824.3,3824.0,0.52288]
[1754579244424,0.6668,3824.1,3824.0,0.52288]
[1754579244620,0.6668,3823.7,3823.6,0.52294]
[1754579244826,1.701,3823.7,3823.6,0.52294]
[1754579245031,1.701,3823.7,3823.6,1.43134]
[1754579245233,1.2588,3823.7,3823.6,1.71744]
[1754579245928,1.2369,3823.6,3823.5,0.52295]
[1754579246230,1.701,3823.6,3823.5,0.52295]
[1754579246528,0.6668,3823.6,3823.4,0.52296]
[1754579246733,1.1953,3823.5,3823.4,0.52296]
[1754579246929,1.1953,3823.5,3823.0,0.0895]
[1754579246930,1.0342,3823.4,3823.0,0.0895]
[1754579247132,1.701,3823.1,3823.0,0.70972]
[1754579247528,1.701,3823.1,3822.7,0.0895]
[1754579247529,1.701,3823.1,3822.9,0.52303]
[1754579247829,0.6668,3822.4,3822.3,1.28842]
[1754579248021,0.7663,3822.4,3822.3,1.71762]
[1754579248227,0.5636,3822.4,3822.3,1.71762]
[1754579248932,1.701,3822.4,3822.3,1.71762]
[1754579249127,1.701,3822.4,3822.3,1.43152]
[1754579249328,1.701,3822.4,3822.3,0.70982]
[1754579249635,1.701,3822.4,3822.3,1.71762]
[1754579250733,1.701,3822.4,3822.3,0.91092]
[1754579250924,1.701,3822.4,3822.3,0.52312]
[1754579251127,0.6812,3821.9,3821.8,0.1867]
[1754579251328,0.6668,3821.9,3821.8,0.70989]
[1754579251729,1.412,3821.9,3821.8,0.70989]
[1754579251927,2.6826948,3823.4,3821.0,0.0895]
[1754579251928,0.4422,3821.5,3821.0,0.0895]
[1754579252239,1.0342,3821.4,3821.1,0.52329]
[1754579252433,0.7312,3820.8,3820.5,0.52336]
[1754579252625,0.303,3820.6,3819.9,0.94242071]
[1754579252934,0.303,3820.3,3820.1,0.52342]
[1754579253137,0.303,3820.6,3819.9,0.94242071]
[1754579253432,0.303,3820.6,3820.1,0.52341]
[1754579253635,1.0342,3820.6,3820.2,0.5234]
[1754579253929,0.52333,3820.8,3820.4,0.52338]
[1754579254332,0.52333,3820.8,3820.2,0.5234]
[1754579254534,1.0342,3820.5,3820.2,0.5234]
[1754579254733,1.0342,3820.3,3820.2,0.5234]
[1754579256530,1.0342,3820.3,3820.2,0.9009]
[1754579257239,1.0342,3821.3,3820.5,0.52335]
[1754579257433,0.303,3821.1,3820.5,0.52335]
[1754579257633,0.4422,3821.0,3820.5,0.52335]
[1754579257932,0.52332,3820.9,3820.5,0.52335]
[1754579258130,0.289,3821.2,3820.9,0.52329]
[1754579258333,1.0342,3821.0,3820.9,0.52329]
[1754579259042,1.0342,3820.9,3820.8,0.3775]
[1754579259336,0.4422,3821.1,3820.6,0.3775]
[1754579259636,0.7452,3820.9,3820.8,0.3775]
[1754579259841,0.9698,3820.9,3820.8,1.34222]
[1754579260041,1.2588,3820.9,3820.8,1.1945]
[1754579260539,1.701,3820.9,3820.8,1.1945]
[1754579263037,1.701,3820.9,3820.8,0.6204]
[1754579263341,0.7531,3820.9,3820.8,1.2208]
[1754579263540,0.2746,3820.9,3820.8,1.2208]
[1754579264135,0.9507,3820.9,3820.8,1.2208]
[1754579264334,1.6906,3820.9,3820.8,1.2208]
[1754579265440,0.52324,3821.4,3820.8,0.6899]
[1754579265640,1.7157,3821.3,3821.2,0.1892]
[1754579265837,1.7157,3821.3,3821.2,0.7728]
[1754579266044,0.52322,3821.6,3821.3,0.52325]
[1754579266246,1.7157,3821.5,3821.4,0.8266]
[1754579266444,1.7157,3821.5,3821.4,0.9161]
[1754579267246,1.7157,3821.5,3821.4,0.3873]
[1754579268145,1.7157,3821.5,3821.4,1.2205]
[1754579268541,0.7796,3822.0,3821.9,1.131]
[1754579268738,0.7796,3822.0,3821.9,1.2205]
[1754579268942,1.7157,3822.0,3821.9,1.2205]
[1754579269145,0.2997,3822.0,3821.9,1.2205]
[1754579269344,0.4455,3822.3,3822.1,1.74363]
[1754579269541,0.6895,3822.3,3822.2,0.6201]
[1754579269743,0.6895,3822.0,3821.9,1.05376]
[1754579269943,1.135,3822.0,3821.9,1.43926]
[1754579270249,1.7157,3822.0,3821.9,1.74366]
[1754579270444,1.2702,3822.0,3821.9,1.74366]
[1754579270640,0.6895,3822.0,3821.3,0.296]
[1754579270844,1.2702,3821.6,3821.5,1.14332]
[1754579271139,0.6895,3821.8,3821.7,0.85568]
[1754579271345,1.7157,3821.8,3821.7,1.14328]
[1754579271545,1.7157,3822.1,3822.0,0.4768]
[1754579271847,1.7157,3821.7,3821.6,1.4393]
[1754579272346,1.7157,3821.7,3821.6,1.7437]
[1754579272539,0.2863,3821.7,3821.6,1.7437]
[1754579272746,0.7796,3821.9,3821.8,1.74368]
[1754579273146,2.23882,3822.3,3822.2,0.1892]
[1754579273447,1.7157,3822.0,3821.9,0.1892]
[1754579273649,1.7157,3821.8,3821.7,1.43929]
[1754579273849,1.7157,3821.8,3821.7,1.74369]
[1754579274245,0.9758,3822.2,3822.1,0.3873]
[1754579274451,1.7157,3822.2,3822.1,0.7728]
[1754579275249,1.4213,3822.2,3821.7,0.6899]
[1754579275451,1.7157,3822.1,3822.0,0.71234]
[1754579275755,1.7157,3822.1,3822.0,1.43924]
[1754579276145,1.7157,3822.1,3822.0,1.74364]
[1754579276344,0.6895,3822.1,3821.5,0.6899]
[1754579276554,1.4294,3821.6,3821.5,1.74372]
[1754579276855,1.7157,3821.6,3821.5,1.74372]
[1754579278453,1.7157,3821.6,3821.5,1.43932]
[1754579278657,1.7157,3821.6,3821.5,0.71242]
[1754579278853,1.0262,3821.5,3821.3,0.52324]
[1754579279057,1.7157,3821.4,3821.3,0.52324]
[1754579279358,0.6895,3821.4,3821.2,0.52325]
[1754579279662,0.6895,3821.7,3821.6,0.3873]
[1754579279847,0.6895,3821.7,3821.6,1.2205]
[1754579280258,1.7157,3821.7,3821.6,1.2205]
[1754579281458,1.5221,3821.9,3821.8,1.0313]
[1754579281651,1.7157,3821.9,3821.8,1.2205]
[1754579281853,1.7157,3821.9,3821.8,0.9161]
[1754579282251,0.9758,3821.9,3821.8,1.2205]
[1754579282457,1.7157,3821.9,3821.8,0.9161]
[1754579282658,1.7157,3821.9,3821.8,0.3873]
[1754579282859,1.7157,3821.9,3821.8,0.1892]
[1754579283359,0.52319,3821.8,3821.2,1.30816]
[1754579283551,1.135,3821.4,3821.3,1.74375]
[1754579283862,1.4294,3822.0,3821.9,0.1892]
[1754579284051,1.7157,3822.0,3821.8,0.52317]
[1754579284260,1.5221,3821.9,3821.8,0.52317]
[1754579284448,1.7157,3821.9,3821.8,1.74367]
[1754579284855,1.7157,3821.9,3821.8,1.43927]
[1754579285555,1.7157,3821.9,3821.8,0.91047]
[1754579285854,0.9758,3821.9,3821.8,1.43927]
[1754579286060,0.9758,3821.9,3821.8,1.74367]
[1754579286263,0.2997,3821.9,3821.8,1.74367]
[1754579286556,1.7157,3822.2,3822.1,0.3873]
[1754579286858,1.4294,3822.0,3821.9,0.52316]
[1754579287059,1.7157,3822.0,3821.9,1.74366]
[1754579287258,1.7157,3822.4,3822.3,1.0537]
[1754579287448,1.7157,3822.4,3822.3,1.7436]
[1754579288062,1.7157,3822.4,3822.3,0.9161]
[1754579288561,0.6895,3822.2,3822.1,0.91043]
[1754579288853,1.7157,3822.2,3822.1,1.29593]
[1754579289061,0.7318,3822.1,3821.7,0.6899]
[1754579289255,1.7157,3821.7,3821.6,0.5232]
[1754579289449,1.30794,3821.9,3821.2,0.52326]
[1754579289649,1.0262,3821.2,3821.1,0.52327]
[1754579289856,0.6895,3821.2,3821.0,0.52328]
[1754579290159,0.5807,3821.0,3819.9,0.94242071]
[1754579290461,1.135,3820.1,3820.0,0.52342]
[1754579290661,1.7157,3820.1,3820.0,0.52342]
[1754579291153,0.6895,3820.1,3819.9,1.46585071]
[1754579291350,1.7157,3820.0,3819.9,1.46585071]
[1754579291553,1.7157,3820.0,3819.9,1.65505071]
[1754579292365,1.7157,3820.0,3819.9,2.23865071]
[1754579292665,0.4933,3820.4,3820.3,0.80208]
[1754579292860,0.8353,3820.6,3820.5,0.3873]
[1754579293059,0.2021,3820.4,3820.3,0.52338]
[1754579293266,1.1144,3820.4,3820.3,0.52338]
[1754579293454,0.72983387,3821.4,3820.1,0.3801]
[1754579293455,1.2724,3820.2,3820.1,0.566]
[1754579293660,1.704,3820.2,3820.1,1.4256]
[1754579294061,1.704,3820.2,3820.1,1.7079]
[1754579294256,1.704,3820.6,3820.5,1.42555]
[1754579294461,0.294,3820.8,3820.7,1.04542]
[1754579294659,0.7849,3820.8,3820.7,1.70782]
[1754579294961,1.4152,3820.8,3820.3,0.52339]
[1754579295159,1.0212,3820.7,3819.9,1.32252071]
[1754579295355,1.4032,3820.4,3820.3,0.90237]
[1754579295558,1.704,3820.4,3820.3,1.42557]
[1754579296159,1.704,3820.4,3820.3,0.70927]
[1754579296363,1.704,3820.4,3820.3,1.28247]
[1754579297058,1.704,3820.4,3820.3,1.42557]
[1754579297059,0.7849,3820.4,3820.3,1.42557]
[1754579297258,1.704,3820.8,3820.7,1.42554]
[1754579298859,0.6828,3820.8,3820.3,0.2897]
[1754579299164,1.704,3820.4,3820.0,0.2823]
[1754579299360,1.704,3820.3,3819.9,0.94242071]
[1754579299666,1.704,3820.2,3820.1,0.52343]
[1754579300266,1.704,3820.2,3820.1,0.99283]
[1754579300465,1.704,3820.2,3820.1,0.4694]
[1754579300665,1.704,3820.2,3820.1,0.1859]
[1754579300865,0.4909,3820.2,3820.1,0.379]
[1754579301068,0.3888,3820.4,3820.3,0.7591]
[1754579301266,1.704,3820.0,3819.9,2.12718071]
[1754579301560,1.704,3820.0,3819.9,1.65178071]
[1754579301962,1.704,3820.0,3819.9,2.22498071]
[1754579302158,1.704,3820.0,3819.9,1.70152071]
[1754579302360,0.9716,3820.0,3819.9,2.12692071]
[1754579302562,1.30824,3821.1,3820.3,0.52339]
[1754579302864,1.30824,3821.1,3819.9,0.94242071]
[1754579302865,1.704,3820.2,3820.1,0.379]
[1754579303260,0.52335,3820.7,3820.1,0.6624]
[1754579303460,0.52335,3820.7,3820.5,0.379]
[1754579303461,0.9716,3820.6,3820.5,0.379]
[1754579303661,1.704,3820.6,3820.5,0.379]
[1754579304363,1.704,3820.0,3819.9,1.46588071]
[1754579304567,1.704,3820.0,3819.9,0.94242071]
[1754579306058,0.82418,3820.5,3820.1,0.52341]
[1754579306369,1.704,3820.3,3820.2,0.1859]
[1754579306569,1.704,3820.3,3820.2,0.379]
[1754579306768,0.6828,3820.1,3819.9,1.46585071]
[1754579306968,1.1144,3820.0,3819.9,0.94242071]
[1754579307166,1.704,3820.0,3819.9,0.94242071]
[1754579308667,0.4316,3820.3,3820.0,0.1931]
[1754579308970,1.63773,3820.7,3820.6,0.379]
[1754579309163,2.22733,3820.7,3820.6,0.1859]
[1754579309471,0.4807,3820.2,3820.1,0.5234]
[1754579309665,1.704,3820.2,3820.1,0.5234]
[1754579310066,0.6828,3820.2,3820.0,0.90351]
[1754579310261,1.93862,3820.0,3819.9,0.94242071]
[1754579310468,2.22742,3820.0,3819.9,0.94242071]
[1754579311072,1.704,3820.0,3819.9,0.94242071]
[1754579311469,1.704,3820.0,3819.9,2.12692071]
[1754579312464,2.22742,3820.0,3819.9,0.94242071]
[1754579312670,0.6828,3819.0,3818.9,1.3648]
[1754579312870,1.704,3819.0,3818.9,1.3648]
[1754579313065,0.704,3819.0,3818.9,1.3648]
[1754579313263,0.4316,3819.0,3818.5,0.9915]
[1754579313470,0.4316,3819.1,3818.2,1.30917]
[1754579313763,0.52353,3819.3,3818.9,0.2897]
[1754579313967,0.4316,3819.7,3818.8,0.4195]
[1754579314164,0.52357,3819.0,3818.6,0.2897]
[1754579314373,0.4316,3819.5,3817.9,0.2823]
[1754579314674,2.61755,3819.4,3816.9,1.46699142]
[1754579314864,0.4316,3817.5,3817.0,0.52383]
[1754579315062,0.2888,3817.4,3816.9,1.46700142]
[1754579315269,0.7324,3817.1,3816.9,0.94316142]
[1754579315572,1.0212,3817.0,3816.9,0.94316142]
[1754579316277,1.0212,3817.6,3817.2,0.5238]
[1754579316477,18.236,3818.3,3817.0,1.30958]
[1754579316770,0.52373,3817.8,3817.3,1.51528]
[1754579316976,1.0212,3817.8,3817.5,1.51526]
[1754579317174,1.0212,3817.7,3817.6,0.7092]
[1754579317375,0.7204,3817.7,3817.6,0.9915]
[1754579318072,1.0212,3817.7,3817.0,0.9915]
[1754579318272,0.52377,3817.5,3817.0,0.52382]
[1754579318473,1.0212,3817.5,3817.4,0.7092]
[1754579318681,0.52381,3817.3,3817.0,0.2897]
[1754579318974,0.7204,3817.0,3816.9,1.64496142]
[1754579319181,1.0212,3817.5,3816.9,1.93466142]
[1754579319379,18.239,3818.1,3817.2,0.8135]
[1754579319677,0.4316,3818.0,3817.4,0.52378]
[1754579319868,0.95532,3817.9,3817.5,0.52376]
[1754579320072,0.4316,3817.8,3817.6,0.81344]
[1754579320274,0.4316,3817.8,3817.5,0.7018]
[1754579320275,0.4316,3817.6,3816.9,0.94316142]